[Event "Early-Titled-Tuesday-Blitz-March-05-2024"]
[Site "Chess.com"]
[Date "2024.03.05"]
[Round "2"]
[White "BilodeauA"]
[Black "awesomevishesh"]
[Result "1/2-1/2"]
[WhiteElo "2991"]
[BlackElo "2620"]
[TimeControl "180+1"]
[EndTime "8:19:33 PST"]
[Termination "Game drawn - insufficient material"]

1. e4 {[%clk 0:03:00.9]} 1... c5 {[%clk 0:02:59.6]} 2. Nf3 {[%clk 0:03:01.1]}
2... d6 {[%clk 0:02:59.2]} 3. Bb5+ {[%clk 0:03:00.7]} 3... Nd7 {[%clk
0:02:58.7]} 4. Ba4 {[%clk 0:03:00.5]} 4... Nf6 {[%clk 0:02:55]} 5. Qe2 {[%clk
0:03:00.4]} 5... a6 {[%clk 0:02:53.1]} 6. c4 {[%clk 0:02:59.7]} 6... e6 {[%clk
0:02:49.3]} 7. Nc3 {[%clk 0:02:59.4]} 7... Be7 {[%clk 0:02:48.8]} 8. O-O {[%clk
0:03:00]} 8... O-O {[%clk 0:02:48.4]} 9. d3 {[%clk 0:03:00.7]} 9... Qc7 {[%clk
0:02:29.9]} 10. h3 {[%clk 0:02:59.6]} 10... b6 {[%clk 0:02:24.3]} 11. Nh2 {[%clk
0:02:55.8]} 11... Nb8 {[%clk 0:02:23.8]} 12. f4 {[%clk 0:02:55]} 12... Bd7
{[%clk 0:02:23.7]} 13. Bc2 {[%clk 0:02:50]} 13... Nc6 {[%clk 0:02:22.9]} 14. Nf3
{[%clk 0:02:48.4]} 14... Nd4 {[%clk 0:02:22.7]} 15. Nxd4 {[%clk 0:02:47.9]}
15... cxd4 {[%clk 0:02:22.9]} 16. Nb1 {[%clk 0:02:45.9]} 16... b5 {[%clk
0:01:58.1]} 17. b3 {[%clk 0:02:46.2]} 17... Rac8 {[%clk 0:01:37.9]} 18. Nd2
{[%clk 0:02:45.9]} 18... e5 {[%clk 0:01:34.8]} 19. f5 {[%clk 0:02:44.2]} 19...
d5 {[%clk 0:01:14.7]} 20. g4 {[%clk 0:02:44.4]} 20... dxe4 {[%clk 0:00:55.3]}
21. dxe4 {[%clk 0:02:43.9]} 21... bxc4 {[%clk 0:00:53.9]} 22. Nxc4 {[%clk
0:02:29.5]} 22... Bb5 {[%clk 0:00:46.2]} 23. Bd3 {[%clk 0:02:29.7]} 23... Nd7
{[%clk 0:00:43.3]} 24. Bd2 {[%clk 0:02:03.7]} 24... Nc5 {[%clk 0:00:32.5]} 25.
Rac1 {[%clk 0:02:04.2]} 25... Nxd3 {[%clk 0:00:30.2]} 26. Qxd3 {[%clk
0:02:05.1]} 26... Qd8 {[%clk 0:00:24.2]} 27. a4 {[%clk 0:02:00.7]} 27... Bxc4
{[%clk 0:00:22.2]} 28. Rxc4 {[%clk 0:02:01.4]} 28... Rxc4 {[%clk 0:00:21.8]} 29.
Qxc4 {[%clk 0:02:02.3]} 29... Bg5 {[%clk 0:00:22]} 30. Bb4 {[%clk 0:01:57.9]}
30... Be3+ {[%clk 0:00:21.7]} 31. Kg2 {[%clk 0:01:57.2]} 31... Re8 {[%clk
0:00:18.4]} 32. Qxa6 {[%clk 0:01:29.7]} 32... h5 {[%clk 0:00:18.4]} 33. f6
{[%clk 0:01:10.6]} 33... hxg4 {[%clk 0:00:16.9]} 34. hxg4 {[%clk 0:01:08]} 34...
Qd7 {[%clk 0:00:14.1]} 35. Kh3 {[%clk 0:01:00.6]} 35... d3 {[%clk 0:00:11]} 36.
Rd1 {[%clk 0:00:48]} 36... d2 {[%clk 0:00:10.4]} 37. Qe2 {[%clk 0:00:48.6]}
37... Bg5 {[%clk 0:00:05.4]} 38. fxg7 {[%clk 0:00:40.4]} 38... Kxg7 {[%clk
0:00:05.2]} 39. Kg2 {[%clk 0:00:23]} 39... Rh8 {[%clk 0:00:05.7]} 40. Bxd2
{[%clk 0:00:18.7]} 40... Rd8 {[%clk 0:00:05.8]} 41. Bxg5 {[%clk 0:00:13.9]}
41... Qxd1 {[%clk 0:00:05.6]} 42. Kf2 {[%clk 0:00:08.4]} 42... Qxe2+ {[%clk
0:00:05.7]} 43. Kxe2 {[%clk 0:00:08.8]} 43... Rb8 {[%clk 0:00:06.6]} 44. Kd3
{[%clk 0:00:05.9]} 44... Rxb3+ {[%clk 0:00:07.2]} 45. Kc4 {[%clk 0:00:06.7]}
45... Rg3 {[%clk 0:00:07]} 46. Bd2 {[%clk 0:00:05.5]} 46... Rxg4 {[%clk
0:00:07.3]} 47. Kd5 {[%clk 0:00:06.2]} 47... Rg2 {[%clk 0:00:07.7]} 48. Bc3
{[%clk 0:00:05.6]} 48... f6 {[%clk 0:00:08.2]} 49. a5 {[%clk 0:00:06.2]} 49...
Rc2 {[%clk 0:00:08.7]} 50. Bb4 {[%clk 0:00:05.8]} 50... Rb2 {[%clk 0:00:09.3]}
51. Kc4 {[%clk 0:00:03.3]} 51... Ra2 {[%clk 0:00:09.5]} 52. Kb3 {[%clk
0:00:03.1]} 52... Re2 {[%clk 0:00:08.4]} 53. a6 {[%clk 0:00:03.4]} 53... Rh2
{[%clk 0:00:08.1]} 54. a7 {[%clk 0:00:03.5]} 54... Rh8 {[%clk 0:00:08.6]} 55.
Bd6 {[%clk 0:00:03.1]} 55... Ra8 {[%clk 0:00:09.2]} 56. Bb8 {[%clk 0:00:03.5]}
56... Kg6 {[%clk 0:00:09.7]} 57. Kc4 {[%clk 0:00:04]} 57... f5 {[%clk
0:00:09.9]} 58. exf5+ {[%clk 0:00:04.4]} 58... Kxf5 {[%clk 0:00:10.4]} 59. Kd3
{[%clk 0:00:05.1]} 59... e4+ {[%clk 0:00:10.5]} 60. Ke3 {[%clk 0:00:05.6]} 60...
Rxa7 {[%clk 0:00:10.6]} 61. Bxa7 {[%clk 0:00:05.8]} 61... Ke5 {[%clk 0:00:11.1]}
62. Bb8+ {[%clk 0:00:05.6]} 62... Kd5 {[%clk 0:00:12]} 63. Bg3 {[%clk 0:00:06]}
63... Kc6 {[%clk 0:00:12.9]} 64. Kxe4 {[%clk 0:00:06.9]} 1/2-1/2

[Event "Early-Titled-Tuesday-Blitz-March-05-2024"]
[Site "Chess.com"]
[Date "2024.03.05"]
[Round "2"]
[White "nihalsarin"]
[Black "NovozhilovSemen"]
[Result "1/2-1/2"]
[WhiteElo "3186"]
[BlackElo "2646"]
[TimeControl "180+1"]
[EndTime "8:19:34 PST"]
[Termination "Game drawn by repetition"]

1. e4 {[%clk 0:02:51.5]} 1... c5 {[%clk 0:02:57.9]} 2. Nf3 {[%clk 0:02:51.3]}
2... Nc6 {[%clk 0:02:57.9]} 3. Bc4 {[%clk 0:02:47.7]} 3... d6 {[%clk 0:02:55.4]}
4. O-O {[%clk 0:02:47.3]} 4... Nf6 {[%clk 0:02:48.9]} 5. d3 {[%clk 0:02:47]}
5... g6 {[%clk 0:02:45.8]} 6. h3 {[%clk 0:02:47]} 6... Bg7 {[%clk 0:02:46]} 7.
c3 {[%clk 0:02:47.4]} 7... O-O {[%clk 0:02:45.2]} 8. Re1 {[%clk 0:02:48.1]} 8...
e6 {[%clk 0:02:35.5]} 9. Bb3 {[%clk 0:02:47.8]} 9... d5 {[%clk 0:02:04.8]} 10.
e5 {[%clk 0:02:45.5]} 10... Ne8 {[%clk 0:02:04.9]} 11. d4 {[%clk 0:02:45.1]}
11... c4 {[%clk 0:01:58.9]} 12. Bc2 {[%clk 0:02:44.6]} 12... f6 {[%clk
0:01:58.7]} 13. exf6 {[%clk 0:02:38.7]} 13... Bxf6 {[%clk 0:01:59.6]} 14. Bh6
{[%clk 0:02:35.8]} 14... Rf7 {[%clk 0:01:56]} 15. Nbd2 {[%clk 0:02:35.3]} 15...
Nd6 {[%clk 0:01:52.9]} 16. Bf4 {[%clk 0:02:28.5]} 16... Rf8 {[%clk 0:01:26.8]}
17. Ne5 {[%clk 0:02:22.8]} 17... Bxe5 {[%clk 0:01:10.4]} 18. Bxe5 {[%clk
0:02:22.6]} 18... Nxe5 {[%clk 0:01:10.3]} 19. Rxe5 {[%clk 0:02:23.5]} 19... Nf7
{[%clk 0:01:08.3]} 20. Re3 {[%clk 0:02:22]} 20... Re8 {[%clk 0:01:05.8]} 21. Nf3
{[%clk 0:02:20.1]} 21... Qf6 {[%clk 0:01:05.6]} 22. Ne5 {[%clk 0:02:01.7]} 22...
Nxe5 {[%clk 0:01:04.7]} 23. Rxe5 {[%clk 0:02:02.6]} 23... Bd7 {[%clk 0:01:04.8]}
24. Qd2 {[%clk 0:02:03.3]} 24... b5 {[%clk 0:00:58.3]} 25. Rae1 {[%clk 0:02:04]}
25... Re7 {[%clk 0:00:57.8]} 26. g3 {[%clk 0:02:01.2]} 26... a5 {[%clk
0:00:57.7]} 27. a3 {[%clk 0:02:01.1]} 27... Rf8 {[%clk 0:00:55.5]} 28. h4 {[%clk
0:02:00.9]} 28... Ref7 {[%clk 0:00:48.5]} 29. f4 {[%clk 0:02:00.5]} 29... h5
{[%clk 0:00:43.9]} 30. Bxg6 {[%clk 0:01:59.9]} 30... Rg7 {[%clk 0:00:43.3]} 31.
Rg5 {[%clk 0:00:50.4]} 31... Rxg6 {[%clk 0:00:42.6]} 32. Ree5 {[%clk 0:00:50.9]}
32... Be8 {[%clk 0:00:38.1]} 33. Qe2 {[%clk 0:00:50.1]} 33... Rxg5 {[%clk
0:00:35]} 34. hxg5 {[%clk 0:00:48.4]} 34... Qg6 {[%clk 0:00:34.4]} 35. Rxe6
{[%clk 0:00:48.6]} 35... Qd3 {[%clk 0:00:33.9]} 36. Qxd3 {[%clk 0:00:34.4]}
36... cxd3 {[%clk 0:00:33.3]} 37. Kf2 {[%clk 0:00:35.3]} 37... Kg7 {[%clk
0:00:31.3]} 38. Re7+ {[%clk 0:00:30.8]} 38... Bf7 {[%clk 0:00:31.4]} 39. Re3
{[%clk 0:00:12.7]} 39... Bg6 {[%clk 0:00:30.5]} 40. Re7+ {[%clk 0:00:13.3]}
40... Kg8 {[%clk 0:00:29.1]} 41. Re6 {[%clk 0:00:13.1]} 41... Kf7 {[%clk
0:00:29.6]} 42. Re5 {[%clk 0:00:10.2]} 42... Re8 {[%clk 0:00:29.5]} 43. f5
{[%clk 0:00:09.9]} 43... Rxe5 {[%clk 0:00:12.2]} 44. fxg6+ {[%clk 0:00:10.2]}
44... Kxg6 {[%clk 0:00:12.5]} 45. dxe5 {[%clk 0:00:11.1]} 45... Kf5 {[%clk
0:00:13.1]} 46. Ke3 {[%clk 0:00:10.8]} 46... Kxe5 {[%clk 0:00:13.7]} 47. Kxd3
{[%clk 0:00:09.7]} 47... Kf5 {[%clk 0:00:14.2]} 48. a4 {[%clk 0:00:08.3]} 48...
bxa4 {[%clk 0:00:08]} 49. Kd4 {[%clk 0:00:08.6]} 49... Kxg5 {[%clk 0:00:08.5]}
50. Kxd5 {[%clk 0:00:09]} 50... Kg4 {[%clk 0:00:08.9]} 51. c4 {[%clk 0:00:09.6]}
51... Kxg3 {[%clk 0:00:09.6]} 52. c5 {[%clk 0:00:10.3]} 52... h4 {[%clk
0:00:10.4]} 53. c6 {[%clk 0:00:11]} 53... a3 {[%clk 0:00:11.2]} 54. bxa3 {[%clk
0:00:10.8]} 54... h3 {[%clk 0:00:11.7]} 55. c7 {[%clk 0:00:11.4]} 55... h2
{[%clk 0:00:12.4]} 56. c8=Q {[%clk 0:00:12]} 56... h1=Q+ {[%clk 0:00:13.3]} 57.
Kd6 {[%clk 0:00:11.5]} 57... Qd1+ {[%clk 0:00:12.3]} 58. Ke7 {[%clk 0:00:09.9]}
58... Qe2+ {[%clk 0:00:12.2]} 59. Qe6 {[%clk 0:00:06.9]} 59... Qxe6+ {[%clk
0:00:12.4]} 60. Kxe6 {[%clk 0:00:07.8]} 60... Kf4 {[%clk 0:00:13.1]} 61. Kd5
{[%clk 0:00:07.1]} 61... Kf5 {[%clk 0:00:13.5]} 62. a4 {[%clk 0:00:07.4]} 62...
Kf6 {[%clk 0:00:13.6]} 63. Kd6 {[%clk 0:00:08.1]} 63... Kf7 {[%clk 0:00:13.7]}
64. Kd7 {[%clk 0:00:08.9]} 64... Kf6 {[%clk 0:00:14.3]} 65. Kd6 {[%clk
0:00:09.5]} 65... Kf7 {[%clk 0:00:14.7]} 66. Kd7 {[%clk 0:00:10.3]} 66... Kf8
{[%clk 0:00:15.3]} 67. Kd8 {[%clk 0:00:10.9]} 67... Kf7 {[%clk 0:00:16]} 68. Kd7
{[%clk 0:00:11.6]} 1/2-1/2

[Event "Early-Titled-Tuesday-Blitz-March-05-2024"]
[Site "Chess.com"]
[Date "2024.03.05"]
[Round "2"]
[White "javirec"]
[Black "Barmen_EV"]
[Result "0-1"]
[WhiteElo "2253"]
[BlackElo "2494"]
[TimeControl "180+1"]
[EndTime "8:19:42 PST"]
[Termination "Barmen_EV won on time"]

1. Nf3 {[%clk 0:03:00.9]} 1... f5 {[%clk 0:02:59]} 2. c4 {[%clk 0:02:58.2]} 2...
Nf6 {[%clk 0:02:59.5]} 3. Nc3 {[%clk 0:02:58]} 3... g6 {[%clk 0:03:00.4]} 4. g3
{[%clk 0:02:58.3]} 4... Bg7 {[%clk 0:03:00.5]} 5. Bg2 {[%clk 0:02:58.7]} 5...
O-O {[%clk 0:03:01.4]} 6. O-O {[%clk 0:02:58.8]} 6... d6 {[%clk 0:03:02.3]} 7.
d4 {[%clk 0:02:54.9]} 7... Qe8 {[%clk 0:03:02.2]} 8. d5 {[%clk 0:02:54.8]} 8...
Na6 {[%clk 0:03:02.1]} 9. Nd4 {[%clk 0:02:54.4]} 9... Bd7 {[%clk 0:03:01.6]} 10.
Re1 {[%clk 0:02:49.3]} 10... c6 {[%clk 0:02:56.2]} 11. e4 {[%clk 0:02:49]} 11...
fxe4 {[%clk 0:02:54.2]} 12. Nxe4 {[%clk 0:02:48.6]} 12... Nxe4 {[%clk 0:02:51]}
13. Bxe4 {[%clk 0:02:46.4]} 13... Qf7 {[%clk 0:02:51.1]} 14. Be3 {[%clk
0:02:41.9]} 14... Nc5 {[%clk 0:02:48.5]} 15. Bg2 {[%clk 0:02:41.1]} 15... cxd5
{[%clk 0:02:44.9]} 16. cxd5 {[%clk 0:02:39.2]} 16... a5 {[%clk 0:02:27.9]} 17.
Rc1 {[%clk 0:02:37.6]} 17... Rac8 {[%clk 0:02:11.4]} 18. Qd2 {[%clk 0:02:34.9]}
18... a4 {[%clk 0:02:05.5]} 19. Bg5 {[%clk 0:02:23.3]} 19... Rce8 {[%clk
0:01:56.6]} 20. Rc3 {[%clk 0:02:14.6]} 20... Be5 {[%clk 0:01:21.1]} 21. Rf3
{[%clk 0:02:06.1]} 21... Bf6 {[%clk 0:01:17.3]} 22. Bh6 {[%clk 0:02:04.6]} 22...
Bg4 {[%clk 0:01:07.7]} 23. Rf4 {[%clk 0:01:50.9]} 23... Bd7 {[%clk 0:00:59.4]}
24. Ne6 {[%clk 0:01:43.4]} 24... g5 {[%clk 0:00:47.3]} 25. Bxg5 {[%clk
0:00:58.9]} 25... Bxe6 {[%clk 0:00:40.6]} 26. dxe6 {[%clk 0:00:57]} 26... Qg6
{[%clk 0:00:34.2]} 27. Bxf6 {[%clk 0:00:54.2]} 27... Rxf6 {[%clk 0:00:34.6]} 28.
Rxf6 {[%clk 0:00:50.1]} 28... Qxf6 {[%clk 0:00:35.5]} 29. Qb4 {[%clk 0:00:37]}
29... Kh8 {[%clk 0:00:33.4]} 30. Re3 {[%clk 0:00:28.5]} 30... Qg6 {[%clk
0:00:22]} 31. h4 {[%clk 0:00:23.3]} 31... Rf8 {[%clk 0:00:19.5]} 32. Qd4+ {[%clk
0:00:21.9]} 32... Kg8 {[%clk 0:00:18.9]} 33. b4 {[%clk 0:00:17.3]} 33... axb3
{[%clk 0:00:18.9]} 34. axb3 {[%clk 0:00:17.9]} 34... Rf6 {[%clk 0:00:09.3]} 35.
Qd5 {[%clk 0:00:11.6]} 35... Qb1+ {[%clk 0:00:06.6]} 36. Kh2 {[%clk 0:00:10.6]}
36... Rxf2 {[%clk 0:00:06.7]} 37. Qg5+ {[%clk 0:00:09.6]} 37... Qg6 {[%clk
0:00:03.6]} 38. Qxe7 {[%clk 0:00:09.2]} 38... Rf8 {[%clk 0:00:01.8]} 39. Qxd6
{[%clk 0:00:07.2]} 39... b6 {[%clk 0:00:02.5]} 40. Qd5 {[%clk 0:00:06]} 40...
Kg7 {[%clk 0:00:01.8]} 41. Qd4+ {[%clk 0:00:05.3]} 41... Kg8 {[%clk 0:00:01.9]}
42. Qd5 {[%clk 0:00:04.2]} 42... Kg7 {[%clk 0:00:02.2]} 43. e7 {[%clk
0:00:04.9]} 43... Re8 {[%clk 0:00:02.6]} 44. Qd4+ {[%clk 0:00:05.4]} 44... Kh6
{[%clk 0:00:03.1]} 45. Qf4+ {[%clk 0:00:04.4]} 45... Kg7 {[%clk 0:00:03.5]} 46.
Qe5+ {[%clk 0:00:05]} 46... Kh6 {[%clk 0:00:03.8]} 47. Bf3 {[%clk 0:00:05]}
47... Nd3 {[%clk 0:00:02.1]} 48. Qg5+ {[%clk 0:00:03.5]} 48... Qxg5 {[%clk
0:00:02.2]} 49. hxg5+ {[%clk 0:00:04.4]} 49... Kxg5 {[%clk 0:00:02.4]} 50. Rxd3
{[%clk 0:00:05.1]} 50... Rxe7 {[%clk 0:00:03.3]} 51. Kg2 {[%clk 0:00:05.2]}
51... Rc7 {[%clk 0:00:03]} 52. b4 {[%clk 0:00:04.7]} 52... Rc2+ {[%clk
0:00:03.4]} 53. Kh3 {[%clk 0:00:04]} 53... Rb2 {[%clk 0:00:03.4]} 54. Rd4 {[%clk
0:00:04.5]} 54... Kf6 {[%clk 0:00:03]} 55. Bc6 {[%clk 0:00:04.6]} 55... Ke5
{[%clk 0:00:03.9]} 56. Rf4 {[%clk 0:00:04.1]} 56... Kd6 {[%clk 0:00:02.8]} 57.
b5 {[%clk 0:00:04.5]} 57... Kc5 {[%clk 0:00:02.1]} 58. Rh4 {[%clk 0:00:04.9]}
58... Rb1 {[%clk 0:00:03]} 59. Rxh7 {[%clk 0:00:04.3]} 59... Kb4 {[%clk
0:00:03.3]} 60. g4 {[%clk 0:00:04.1]} 60... Rb3+ {[%clk 0:00:02.2]} 61. Kh4
{[%clk 0:00:04.3]} 61... Rb2 {[%clk 0:00:03.1]} 62. Kh5 {[%clk 0:00:00.8]} 62...
Kc5 {[%clk 0:00:04]} 0-1

[Event "Early-Titled-Tuesday-Blitz-March-05-2024"]
[Site "Chess.com"]
[Date "2024.03.05"]
[Round "2"]
[White "atbenina64"]
[Black "Cheer_Down"]
[Result "1/2-1/2"]
[WhiteElo "2736"]
[BlackElo "2411"]
[TimeControl "180+1"]
[EndTime "8:19:45 PST"]
[Termination "Game drawn by repetition"]

1. Nf3 {[%clk 0:03:00.9]} 1... d5 {[%clk 0:02:49.3]} 2. g3 {[%clk 0:03:00.8]}
2... Nf6 {[%clk 0:02:46.8]} 3. Bg2 {[%clk 0:03:01.3]} 3... e6 {[%clk 0:02:46.9]}
4. O-O {[%clk 0:03:00.4]} 4... Be7 {[%clk 0:02:46.3]} 5. c4 {[%clk 0:03:00.9]}
5... O-O {[%clk 0:02:46.4]} 6. b3 {[%clk 0:03:01.5]} 6... b6 {[%clk 0:02:45.7]}
7. cxd5 {[%clk 0:03:01.7]} 7... exd5 {[%clk 0:02:43.3]} 8. Bb2 {[%clk
0:02:59.2]} 8... Bb7 {[%clk 0:02:42.6]} 9. e3 {[%clk 0:02:57.8]} 9... c5 {[%clk
0:02:41.6]} 10. d4 {[%clk 0:02:49.7]} 10... Nbd7 {[%clk 0:02:38.3]} 11. Nc3
{[%clk 0:02:49.1]} 11... Ne4 {[%clk 0:02:33.9]} 12. Nxe4 {[%clk 0:02:43.2]}
12... dxe4 {[%clk 0:02:33.8]} 13. Nd2 {[%clk 0:02:41.4]} 13... cxd4 {[%clk
0:02:06.8]} 14. Bxd4 {[%clk 0:02:41.6]} 14... Nf6 {[%clk 0:02:06.9]} 15. Qb1
{[%clk 0:02:38.5]} 15... Re8 {[%clk 0:02:06.3]} 16. Nxe4 {[%clk 0:02:32.9]}
16... Nxe4 {[%clk 0:02:03.6]} 17. Bxe4 {[%clk 0:02:33.8]} 17... Bxe4 {[%clk
0:02:03.6]} 18. Qxe4 {[%clk 0:02:34.7]} 18... Bf6 {[%clk 0:02:03.2]} 19. Bxf6
{[%clk 0:02:29.6]} 19... Qxf6 {[%clk 0:02:02.2]} 20. Qb7 {[%clk 0:02:20.3]}
20... a5 {[%clk 0:01:58]} 21. Rac1 {[%clk 0:02:06.4]} 21... g6 {[%clk
0:01:52.3]} 22. a4 {[%clk 0:01:49.6]} 22... Rab8 {[%clk 0:01:50.1]} 23. Qc7
{[%clk 0:01:39.8]} 23... Qb2 {[%clk 0:01:19.7]} 24. Qc3 {[%clk 0:01:38.8]} 24...
Qxc3 {[%clk 0:01:19]} 25. Rxc3 {[%clk 0:01:39.7]} 25... b5 {[%clk 0:01:16.3]}
26. Rc5 {[%clk 0:01:37.4]} 26... bxa4 {[%clk 0:01:12.6]} 27. bxa4 {[%clk
0:01:38.3]} 27... Rb2 {[%clk 0:01:08.8]} 28. Rxa5 {[%clk 0:01:36.5]} 28... Rc8
{[%clk 0:01:08.6]} 29. g4 {[%clk 0:01:26.2]} 29... Rcc2 {[%clk 0:01:07]} 30. g5
{[%clk 0:01:25.2]} 30... Ra2 {[%clk 0:01:05.7]} 31. h4 {[%clk 0:00:31.8]} 31...
Kg7 {[%clk 0:01:03.8]} 32. Kg2 {[%clk 0:00:30.2]} 32... Rc4 {[%clk 0:01:03.6]}
33. Kg3 {[%clk 0:00:24.4]} 33... Raxa4 {[%clk 0:01:01]} 34. Rxa4 {[%clk
0:00:23.7]} 34... Rxa4 {[%clk 0:01:01.9]} 35. Rd1 {[%clk 0:00:22.1]} 35... h5
{[%clk 0:01:01.8]} 36. gxh6+ {[%clk 0:00:18.6]} 36... Kxh6 {[%clk 0:01:02.7]}
37. Rd7 {[%clk 0:00:19.2]} 37... Kg7 {[%clk 0:01:00.7]} 38. f3 {[%clk
0:00:19.3]} 38... Rb4 {[%clk 0:01:00]} 39. e4 {[%clk 0:00:20.2]} 39... Rb1
{[%clk 0:00:56.6]} 40. e5 {[%clk 0:00:18.1]} 40... Kf8 {[%clk 0:00:56.3]} 41.
Kg4 {[%clk 0:00:16.8]} 41... Rg1+ {[%clk 0:00:48.9]} 42. Kf4 {[%clk 0:00:17]}
42... Rg2 {[%clk 0:00:45.3]} 43. Rd6 {[%clk 0:00:14.7]} 43... Kg7 {[%clk
0:00:43.4]} 44. Ra6 {[%clk 0:00:14.4]} 44... Rg1 {[%clk 0:00:43.2]} 45. Ra7
{[%clk 0:00:14.6]} 45... Kf8 {[%clk 0:00:43.4]} 46. Ra8+ {[%clk 0:00:06.5]}
46... Kg7 {[%clk 0:00:43.2]} 47. Ra7 {[%clk 0:00:07.4]} 47... Kf8 {[%clk
0:00:43.4]} 48. Ke4 {[%clk 0:00:07.7]} 48... Rh1 {[%clk 0:00:40.6]} 49. Kd5
{[%clk 0:00:04.6]} 49... Rd1+ {[%clk 0:00:36.6]} 50. Ke4 {[%clk 0:00:04.6]}
50... Rh1 {[%clk 0:00:34.5]} 51. e6 {[%clk 0:00:04.2]} 51... Re1+ {[%clk
0:00:32.3]} 52. Kf4 {[%clk 0:00:04.7]} 52... Rxe6 {[%clk 0:00:32.7]} 53. Kg5
{[%clk 0:00:05.2]} 53... Kg7 {[%clk 0:00:31.8]} 54. f4 {[%clk 0:00:04.7]} 54...
Rb6 {[%clk 0:00:31.1]} 55. Kg4 {[%clk 0:00:04]} 55... Rb1 {[%clk 0:00:30.9]} 56.
Rd7 {[%clk 0:00:03.7]} 56... Rg1+ {[%clk 0:00:30.8]} 57. Kf3 {[%clk 0:00:04.4]}
57... Rh1 {[%clk 0:00:31.3]} 58. Kg3 {[%clk 0:00:04.7]} 58... Rb1 {[%clk
0:00:32]} 59. Kg4 {[%clk 0:00:04.8]} 59... Kf6 {[%clk 0:00:32.2]} 60. Rd6+
{[%clk 0:00:05]} 60... Ke7 {[%clk 0:00:32.6]} 61. Rd5 {[%clk 0:00:05.8]} 61...
Rg1+ {[%clk 0:00:33.2]} 62. Kf3 {[%clk 0:00:06.1]} 62... Kf6 {[%clk 0:00:33.5]}
63. h5 {[%clk 0:00:05.8]} 63... gxh5 {[%clk 0:00:30.9]} 64. Rxh5 {[%clk
0:00:05.8]} 64... Rf1+ {[%clk 0:00:31.5]} 65. Kg3 {[%clk 0:00:06]} 65... Ra1
{[%clk 0:00:32.4]} 66. Rh6+ {[%clk 0:00:06.2]} 66... Kg7 {[%clk 0:00:32.7]} 67.
Rh5 {[%clk 0:00:06.3]} 67... Kg6 {[%clk 0:00:32.8]} 68. Rg5+ {[%clk 0:00:06.1]}
68... Kf6 {[%clk 0:00:33.2]} 69. Rb5 {[%clk 0:00:06.7]} 69... Ra3+ {[%clk
0:00:33.5]} 70. Kg4 {[%clk 0:00:07.3]} 70... Ra1 {[%clk 0:00:33.8]} 71. Rb6+
{[%clk 0:00:07.7]} 71... Kg7 {[%clk 0:00:34.1]} 72. Kg5 {[%clk 0:00:08.4]} 72...
Rg1+ {[%clk 0:00:33.1]} 73. Kf5 {[%clk 0:00:08.8]} 73... Rh1 {[%clk 0:00:33.3]}
74. Rd6 {[%clk 0:00:07.9]} 74... Rh5+ {[%clk 0:00:32.9]} 75. Kg4 {[%clk
0:00:08.6]} 75... Ra5 {[%clk 0:00:33.5]} 76. f5 {[%clk 0:00:09.2]} 76... Ra1
{[%clk 0:00:31.3]} 77. Kg5 {[%clk 0:00:09.6]} 77... Rg1+ {[%clk 0:00:31.3]} 78.
Kf4 {[%clk 0:00:10.1]} 78... Rf1+ {[%clk 0:00:31.5]} 79. Kg5 {[%clk 0:00:10.7]}
79... Rg1+ {[%clk 0:00:31.8]} 80. Kf4 {[%clk 0:00:11.3]} 80... Rf1+ {[%clk
0:00:31.8]} 81. Kg5 {[%clk 0:00:12]} 81... Rg1+ {[%clk 0:00:32.1]} 1/2-1/2